Cogmind - Beta 13 @@@ ROGUE MODE // 2024.04.02 @ 17:16:10 Player: BigMaxPorter Result: Destroyed by Y-45 Defender with Heavy Assault Rifle Performance ------------- Evolutions (1) 500 Regions Visited (4) 800 Robots Destroyed (20) 100 Value Destroyed (661) 661 Prototype IDs (2) 40 Alien Tech Used (0) 0 Bonus (25) 25 TOTAL SCORE: 2126 Bonus ------- Follower Combat Kills 25 Cogmind --------- Core Integrity 0/400 Matter 300/300 Energy 99/100 System Corruption 0% Temperature Cool (27) Movement Core (50) Location -9/Storage Parts ------- > --- POWER (1) -------- (None) > --- PROPULSION (3) --- (None) > --- UTILITY (3) ------ (None) > --- WEAPON (2) ------- (None) > --- INVENTORY (5) ---- EM Pulse Gun Small Laser Particle Gun Peak State ------------ > --- POWER ------------ Light Ion Engine > --- PROPULSION ------- Aluminum Leg Aluminum Leg Backup Propulsion I > --- UTILITY ---------- Targeting Computer Shield Generator Drone Bay > --- WEAPON ----------- Light Assault Rifle Light Assault Rifle > --- INVENTORY -------- Light Ion Engine Aluminum Leg EM Pulse Gun Small Laser Particle Gun [Rating: 14] Favorites ----------- Power Ion Engine Engine Ion Engine Propulsion Aluminum Leg Leg Aluminum Leg Hover Unit Backup Propulsion I Utility Small Storage Unit Device Shield Generator Storage Small Storage Unit Processor Targeting Computer Protection Medium Armor Plating Weapon Light Assault Rifle Energy Gun EM Pulse Gun Ballistic Gun Light Assault Rifle Build | -11 -10 -10 -9 -9 ------- Run | Yrd Mat Min Mat Sto Slots Evolved 2 | . . . 2 . Power . | . . . . . Propulsion 1 | . . . 1 . Utility 1 | . . . 1 . Weapon . | . . . . . Parts Attached 38 | 6 7 5 7 13 Power 6 | 1 . 2 1 2 Engine 6 | 1 . 2 1 2 Core . | . . . . . Reactor . | . . . . . Propulsion 13 | 2 2 1 3 5 Treads . | . . . . . Leg 13 | 2 2 1 3 5 Wheel . | . . . . . Hover . | . . . . . Flight . | . . . . . Utility 10 | 1 3 . 1 5 Device 3 | . . . . 3 Storage 2 | 1 1 . . . Processor 1 | . 1 . . . Hackware . | . . . . . Protection 4 | . 1 . 1 2 Artifact . | . . . . . Weapon 9 | 2 2 2 2 1 Energy Gun 5 | 1 1 2 1 . Energy Cannon . | . . . . . Ballistic Gun 4 | 1 1 . 1 1 Ballistic Cannon . | . . . . . Launcher . | . . . . . Special Weapon . | . . . . . Impact Weapon . | . . . . . Slashing Weapon . | . . . . . Piercing Weapon . | . . . . . Special Melee Weapon . | . . . . . Unidentified Prototypes . | . . . . . Parts Lost 16 | . . 4 1 11 Power 3 | . . 1 . 2 Propulsion 5 | . . 1 . 4 Utility 3 | . . . . 3 Weapon 5 | . . 2 1 2 Highest Loss Streak 6 | . . 2 1 6 To Critical Strikes . | . . . . . Average Slot Usage (%) 91 | . 91 96 94 88 Engine 11 | . 14 11 11 10 Leg 27 | . 28 27 33 25 Hover 2 | . . . . 5 Storage 10 | . 11 14 11 8 Processor 10 | . 6 14 11 9 Protection 4 | . 2 . 5 7 Energy Gun 10 | . 14 20 13 4 Ballistic Gun 12 | . 14 7 8 16 Naked Turns 5 | . . . . 5 Heaviest Build 21 | 11 12 14 21 21 Greatest Support 30 | 20 20 20 30 30 Greatest Overweight (x) 1 | . . . . 1 Average Overweight (x) . | . . . . . Largest Inventory Capacity 8 | 8 8 8 8 8 Average Capacity 7 | 7 7 8 8 7 Most Carried 8 | 6 8 8 7 7 Average Carried 5 | 3 6 7 5 5 Final Capacity 8 | 8 8 8 8 5 Final Carried 8 | 6 8 7 6 3 Class Distribution -------------------- 78% | Mutant 21% | Scavenger-Mutant Dominant Class ---------------- Mutant | -10/Materials Mutant | -10/Mines Mutant | -9/Materials Mutant | -9/Storage Resources | -11 -10 -10 -9 -9 ----------- Run | Yrd Mat Min Mat Sto Matter Collected 618 | 260 81 103 76 98 Remotely . | . . . . . Salvage Created 787 | . 85 172 260 270 Parts 37 | . 5 11 10 11 Haulers Intercepted . | . . . . . Recyclers Shooed . | . . . . . Parts Field Recycled . | . . . . . Retrieved Matter . | . . . . . Parts Self-Destructed . | . . . . . Prevented . | . . . . . Kills | -11 -10 -10 -9 -9 ------- Run | Yrd Mat Min Mat Sto Combat Hostiles Destroyed 19 | . 2 5 6 6 Guns 17 | . 2 5 4 6 AOE 1 | . . . 1 . Classes Destroyed 5 | . 1 2 . 2 Worker 1 | . . 1 . . Swarmer 3 | . . 3 . . Grunt 14 | . 2 2 6 4 Duelist 1 | . . . . 1 Sentry 1 | . . . . 1 Best Kill Streak 5 | . 2 5 3 2 Combat Bots Only 4 | . 2 4 3 2 Max Kills in Single Turn 2 | . 1 2 1 1 Gunslinging . | . . . . . Exploded 1 | . . . 1 . Melee . | . . . . . Uniques/NPCs Destroyed . | . . . . . Combat | -11 -10 -10 -9 -9 -------- Run | Yrd Mat Min Mat Sto Hostile Shots Fired 234 | . 11 63 22 138 Missed 68 | . 2 16 7 43 Damage Taken 2308 | . 137 559 226 1386 Core 544 | . 17 123 . 404 Absorbed by Shields 42 | . . . . 42 Regen/Repaired (Parts) 53 | . . . . 53 Core Remaining (%) 72 | 100 . 44 . . Volleys Fired 95 | . 8 31 17 39 Largest 2 | . 2 2 2 2 Hottest 85 | . 70 80 85 85 Shots Fired 185 | . 16 61 34 74 Gun 185 | . 16 61 34 74 Cannon . | . . . . . Launcher . | . . . . . Special . | . . . . . Kinetic 91 | . 8 21 11 51 Thermal 56 | . 8 20 5 23 Explosive . | . . . . . Electromagnetic 38 | . . 20 18 . Robot Hit Streak 16 | . 2 16 10 12 Robot Miss Streak 4 | . 4 3 2 3 Penetration Max . | . . . . . Secondary Targets . | . . . . . Shots Hit Robots 121 | . 7 42 20 52 Core Hits 40 | . 3 11 9 17 Critical Kills . | . . . . . Critical Parts Destroyed 1 | . . . . 1 Critical Strikes 1 | . . . . 1 Destroy 1 | . . . . 1 Melee Attacks . | . . . . . Impact . | . . . . . Slashing . | . . . . . Piercing . | . . . . . Sneak Attacks . | . . . . . Combat Hostiles . | . . . . . Follow-up Attacks . | . . . . . Damage Inflicted 1447 | . 95 534 284 534 Guns 1383 | . 95 532 243 513 Cannons . | . . . . . Explosions 41 | . . . 41 . Melee . | . . . . . Ramming 23 | . . 2 . 21 Kinetic 567 | . 70 196 26 275 Thermal 551 | . 25 187 101 238 Explosive . | . . . . . Electromagnetic 306 | . . 149 157 . Impact . | . . . . . Slashing . | . . . . . Piercing . | . . . . . Highest Corruption . | . . . . . Average Corruption . | . . . . . Corruption Purged . | . . . . . Corruption Blocked . | . . . . . Overload Shots . | . . . . . Overflow Damage . | . . . . . Projectiles . | . . . . . Explosions . | . . . . . Melee . | . . . . . Knockbacks . | . . . . . Impact . | . . . . . Kinetic . | . . . . . Secondary . | . . . . . Self-Inflicted Damage 39 | . . . 39 . Shots 1 | . . . 1 . Rammed . | . . . . . Targets Rammed 16 | . . 1 . 15 Kicked 16 | . . 1 . 15 Crushed . | . . . . . Highest Temperature 550 | . 183 148 178 550 Average Temperature 123 | . 89 48 52 245 Received Heat Transfer 1132 | . 78 288 123 643 Effects 14 | . . . . 14 Shutdowns 3 | . . . . 3 Energy Bleed 4 | . . . . 4 Interference 3 | . . . . 3 Short Circuit 1 | . . . . 1 Damage (major) 2 | . . . . 2 Damage (core) 1 | . . . . 1 Siege Activations . | . . . . . Robots Corrupted 1 | . . . 1 . Combat Hostiles 1 | . . . 1 . Parts Fried 1 | . . . 1 . Impact Corruptions . | . . . . . Robots Melted . | . . . . . Combat Hostiles . | . . . . . Parts Melted 1 | . . 1 . . Heat Transferred 1382 | . 74 555 198 555 Parts Sabotaged . | . . . . . Parts Stolen . | . . . . . Parts Stripped . | . . . . . Power Chain Reactions 1 | . . . 1 . Alert | -11 -10 -10 -9 -9 ------- Run | Yrd Mat Min Mat Sto Peak Influence 300 | . 50 150 251 300 Initial 105 | . . 19 58 105 Average 106 | . 15 72 158 139 Maximum Alert Level 1 | . . . 1 1 Low Security (%) 88 | 100 100 100 76 82 Level 1 11 | . . . 23 17 Level 2 . | . . . . . Level 3 . | . . . . . Level 4 . | . . . . . Level 5 . | . . . . . High Security . | . . . . . Max Security . | . . . . . Squads Dispatched 5 | . . . 1 4 Investigation 2 | . . . 1 1 Extermination . | . . . . . Reinforcement 1 | . . . . 1 Assault 2 | . . . . 2 Garrison . | . . . . . Intercept . | . . . . . Searches Triggered . | . . . . . Construction Impeded 1 | . . . . 1 Haulers Reinforced . | . . . . . Active Scanning Responses . | . . . . . Cargo Convoy Interrupts . | . . . . . Stealth | -11 -10 -10 -9 -9 --------- Run | Yrd Mat Min Mat Sto Distress Signals 3 | . . . 2 1 Communications Jammed . | . . . . . Distress Signals . | . . . . . Times Spotted 64 | . 5 8 12 39 Peak Tracking Total 18 | . 3 4 6 18 Tactical Retreats 7 | . . 2 2 3 Traps | -11 -10 -10 -9 -9 ------- Run | Yrd Mat Min Mat Sto Traps Triggered 1 | . . . . 1 Indirectly . | . . . . . Trap Hack Attempts . | . . . . . Triggered . | . . . . . Disarmed . | . . . . . Reprogrammed . | . . . . . Reused . | . . . . . Traps Extracted . | . . . . . Installed . | . . . . . Triggered . | . . . . . Machines | -11 -10 -10 -9 -9 ---------- Run | Yrd Mat Min Mat Sto Machines Disabled 1 | . . . 1 . Max in Single Turn 1 | . . . 1 . Garrison Access 1 | . . . . 1 Machines Repaired . | . . . . . Machines Dismantled . | . . . . . Machines Sabotaged . | . . . . . Overloaded Fab Kills . | . . . . . Hacking | -11 -10 -10 -9 -9 --------- Run | Yrd Mat Min Mat Sto Machines Accessed 7 | . . . 2 5 Terminals 4 | . . . 1 3 Fabricators . | . . . . . Repair Stations 2 | . . . 1 1 Recycling Units . | . . . . . Scanalyzers . | . . . . . Garrison Access 1 | . . . . 1 Total Hacks 24 | . . . 6 18 Successful 15 | . . . 2 13 Failed 9 | . . . 4 5 Catastrophic 2 | . . . 1 1 Database Lockouts . | . . . . . Manual 4 | . . . . 4 Terminals 11 | . . . 3 8 Fabricators . | . . . . . Repair Stations 11 | . . . 3 8 Recycling Units . | . . . . . Scanalyzers . | . . . . . Garrison Access 2 | . . . . 2 Terminal Hacks 6 | . . . 1 5 Prototype ID Bank 1 | . . . . 1 Open Door 1 | . . . . 1 Emergency Access Points 1 | . . . . 1 Garrison Index 1 | . . . . 1 Alert Level 2 | . . . 1 1 Fabricator Hacks . | . . . . . Repair Station Hacks 8 | . . . 1 7 Scan Component 4 | . . . 1 3 Repair 3 | . . . . 3 Refit 1 | . . . . 1 Recycling Unit Hacks . | . . . . . Scanalyzer . | . . . . . Garrison Access Hacks 1 | . . . . 1 Seal Access 1 | . . . . 1 Unauthorized Hacks . | . . . . . Terminals . | . . . . . Fabricators . | . . . . . Repair Stations . | . . . . . Recycling Units . | . . . . . Scanalyzers . | . . . . . Garrison Access . | . . . . . Data Cores Recovered . | . . . . . Used . | . . . . . Hacking Detections 5 | . . . 2 3 Full Trace Events 3 | . . . 1 2 Feedback Events . | . . . . . Feedback Blocked . | . . . . . Robot Schematics Acquired . | . . . . . Robots Built . | . . . . . Authchips . | . . . . . Time . | . . . . . Total Robot Build Rating . | . . . . . Part Schematics Acquired . | . . . . . Parts Built . | . . . . . Authchips . | . . . . . Time . | . . . . . Total Part Build Rating . | . . . . . Parts Repaired 3 | . . . . 3 Time 88 | . . . . 88 Parts Recycled . | . . . . . Recycled Matter . | . . . . . Retrieved Matter . | . . . . . Retrieved Components . | . . . . . Parts Scanalyzed . | . . . . . Part Schematics Acquired . | . . . . . Parts Damaged . | . . . . . Bothacking | -11 -10 -10 -9 -9 ------------ Run | Yrd Mat Min Mat Sto Used RIF Installer . | . . . . . Robots Hacked . | . . . . . Non-combat . | . . . . . Combat . | . . . . . Robot Hacks Applied . | . . . . . Relay Couplers Released . | . . . . . Fabnet Peak Effective % . | . . . . . Robots Rewired . | . . . . . Allies Hacked . | . . . . . Hacks Repelled . | . . . . . Allies | -11 -10 -10 -9 -9 -------- Run | Yrd Mat Min Mat Sto Total Allies 2 | . . . . 2 Largest Group 2 | . . . . 2 Highest-Rated Group 62 | . . . . 62 Highest-Rated Ally 31 | . . . . 31 Total Orders . | . . . . . Ally Attacks 10 | . . . . 10 Total Damage 167 | . . . . 167 Kills 1 | . . . . 1 Allies Corrupted . | . . . . . Allies Melted . | . . . . . Intel | -11 -10 -10 -9 -9 ------- Run | Yrd Mat Min Mat Sto Robot Analysis Total . | . . . . . Derelict Logs Recovered 2 | . . 2 . . Drone Launches 4 | . . . . 4 Drone Recoveries . | . . . . . Exploration | -11 -10 -10 -9 -9 ------------- Run | Yrd Mat Min Mat Sto Turns Passed 1703 | 75 252 315 295 766 Spaces Moved 1027 | 51 162 160 175 479 Core 11 | 2 . . . 9 Treads . | . . . . . Legs 1016 | 49 162 160 175 470 Wheels . | . . . . . Hover . | . . . . . Flight . | . . . . . Fastest Speed 50 | 50 120 120 120 50 Average Speed 119 | 117 120 120 120 120 Slowest Speed 190 | 120 120 120 120 190 Overloaded Moves . | . . . . . Propulsion Burnouts . | . . . . . Robots Hopped . | . . . . . Cave-ins Triggered . | . . . . . Exploration Rate (%) 25 | 4 28 16 12 65 Regions Visited 4 Branch Regions 2 Pre-discovered Areas 2 | . . 2 . . Known Exits Taken . | . . . . . Unknown Exits Taken 4 | 1 1 1 1 . Scrap Searched . | . . . . . Spaces Dug . | . . . . . Terrain Destroyed 2 | . . . 2 . Melee . | . . . . . Projectile . | . . . . . AOE 2 | . . . 2 . Terrain Rammed . | . . . . . Walls Destroyed . | . . . . . Machines Disabled . | . . . . . Actions | -11 -10 -10 -9 -9 --------- Run | Yrd Mat Min Mat Sto Total 1318 | 63 205 221 227 602 Wait 110 | . 13 22 25 50 Move 1023 | 50 161 159 174 479 Hop . | . . . . . Pick Up 19 | 7 8 2 2 . Fast Attach 14 | 5 2 2 . 5 Attach 10 | 1 . 2 3 4 Detach . | . . . . . Swap 14 | . 5 1 4 4 Drop 17 | . 8 1 2 6 Fire 95 | . 8 31 17 39 Melee . | . . . . . Ram . | . . . . . Kick 16 | . . 1 . 15 Crush . | . . . . . Escape Stasis . | . . . . . Rewire . | . . . . . Trap . | . . . . . Miscellaneous . | . . . . . Route ------- -11/Scrapyard -10/Materials -10/Mines -9/Materials -9/Storage History --------- Turn | Location | Event 6 | -11/Scrapyard | Discovered new exit (range 16) 76 | -11/Scrapyard | Entered Materials 294 | -10/Materials | Discovered new exit (range 14) 303 | -10/Materials | Build established: Mutant 328 | -10/Materials | Entered Mines 388 | -10/Mines | Core integrity fell below 50% 411 | -10/Mines | Learned location of Zion (-7) 486 | -10/Mines | Discovered new exit (range 11) 643 | -10/Mines | Entered Materials 643 | -9/Materials | Evolved 2 slots: Propulsion x1, Utility x1 646 | -9/Materials | Discovered new exit (range 8) 938 | -9/Materials | Entered Storage 1173 | -9/Storage | Build established: Scavenger-Mutant 1225 | -9/Storage | Repaired Broken Aluminum Leg 1225 | -9/Storage | Repaired Aluminum Leg 1251 | -9/Storage | Repaired Ion Engine? 1518 | -9/Storage | Build established: Mutant 1522 | -9/Storage | Met a pair of Derelict thieves 1626 | -9/Storage | Lost 6 allies 1634 | -9/Storage | Core integrity fell below 50% 1645 | -9/Storage | Lost 6 parts (1p2n2u1w) 1692 | -9/Storage | Core integrity fell below 20% 1704 | -9/Storage | Destroyed by Y-45 Defender with Heavy Assault Rifle Last Messages --------------- Kicked I-25 Savior. Targeting Computer destroyed. Shield Generator destroyed. Kicked I-25 Savior out of the way. Kicked U-05 Engineer out of the way. Acquired 4 matter. Kicked U-05 Engineer. U-05 Engineer suffers critical hit (Destroy). Destroyed Lgt. Ion Engine. ALERT: Construction progress impeded, dispatching reinforcements to local area. M-13 Machinist repairs G-47 Trooper. Kicked G-34 Mercenary. Kicked G-34 Mercenary out of the way. Lgt. Assault Rifle destroyed. Lgt. Ion Engine destroyed. Kicked K-01 Serf out of the way. Imp. Aluminum Leg destroyed. Aluminum Leg destroyed. Critical hit (Burn: +37). Map ----- +----------------------------------------------------+ | =#???????? #??????????????????????????? | | /########+## #??????????????????????????? | | #??????????????????????????? | | ##### #??????????????????????????? | | ##### #??????????????????????????? | | / #??????????????????????????? | | ##### ######+###+#???????????????? | | ""#?# #?????""????????? | | Y"#?# #???" """???????? | | """ ""######"######### #??"" """ #?????? | | """ #### #???# #?? #?????? | | """ ##"" ##### #? #?????? | | ##"Y + % # #?????? | | ######"" """ """ #### # #?????? | | !!!!#### """ """ #??# + #?????? | | != #??# """ """ #??# #######?????????? | | !%!!#?# #??# g ##????##????????? | | #####?## #??# g#####T#"???????? | | #??????#####"T"###??# g g ! "???????? | | #??????????#"""#????# = "???????? | | #???????????##??????# o ###"???????? | | T#??????????????????# """ #??????????? | | ##??????????????????# """ ##?????????? | | #???????????######## Y """ #?????????? | | ??????? #?????????? | | # #?????? @ #?????????? | | ####??????????###+####+########?????????? | | ????????????????????? ????????????????? | | ????????????????????? ""????????????????? | | ????????????????????" ""????????????????? | | ????????????????????" ""????????????????? | | ???????????????????? ??????????????????? | | ???????????????????? ???????????????????? | | ???????????????????? ???????????????????? | | ????????????????????????????????????????? | | | | | | | | | | | | | | | | | | | | | | | | | | | | | | | +----------------------------------------------------+ Best States ------------- Heat Dissipation 28 Energy Generation 10 Energy Capacity 250 Matter Stores 300 Matter Capacity 300 Sight Range 16 Terrain Scan Density 10 Armor Coverage 225 Evasion (%) 55 Targeting Accuracy 5 Item Schematics ----------------- None Robot Schematics ------------------ None Fabricated ------------ Nothing Alien Tech Used ----------------- None Achievements -------------- None Challenges ------------ None Game ------ Seed InsulatedInsulatedBlade Manual? 0 Play Time 00:21:09 Cumulative 5.2 hours Start 2024.04.02 @ 16:56:39 End 2024.04.02 @ 17:16:10 Sessions 1 Manual Loads 0 Difficulty Rogue Special Mode None Game No. 15 Rogue 15 Adventurer 0 Explorer 0 Win Type - Total 0 Types 0/0/0/0/0/0/0/0/0 Lore% 12 Gallery% 13 Achievement% 10 Wizard Run 0 Options --------- Layout 1 ASCII 0 Keyboard 0 Movement Mouse Keybinds 0 Fullscreen 1 Font 24/Smallcaps Map View 50x35 Zoom Use 0% Tactical HUD 0 Map Filters NONE Filters NONE Steam 1 RUN: fef7e824-1287-4fc6-8e6f-051d176ba4ce